fUST/lending_fUST_20250701
["ID","MTS","AMOUNT","RATE_DAILY","PERIOD"]
[368805072,1751368247361,-207.4,0.00020604,2]
[368805074,1751368247371,-500.0,0.00020604,2]
[368805076,1751368247380,-500.0,0.00020604,2]
[368805078,1751368247391,-500.0,0.00020604,2]
[368805080,1751368247400,-500.0,0.00020604,2]
[368805082,1751368247410,-500.0,0.00020604,2]
[368805084,1751368247419,-500.0,0.00020604,2]
[368805086,1751368247429,-500.0,0.00020604,2]
[368805088,1751368247438,-500.0,0.00020604,2]
[368805090,1751368247448,-500.0,0.00020604,2]
[368805092,1751368247457,-500.0,0.00020604,2]
[368805094,1751368247466,-500.0,0.00020604,2]
[368805095,1751368247474,-500.0,0.00020604,2]
[368805096,1751368247483,-500.0,0.00020604,2]
[368805097,1751368247492,-500.0,0.00020604,2]
[368805098,1751368247501,-500.0,0.00020604,2]
[368805099,1751368247510,-500.0,0.00020604,2]
[368805100,1751368247520,-500.0,0.00020604,2]
[368805101,1751368247529,-500.0,0.00020604,2]
[368805102,1751368247539,-500.0,0.00020604,2]
[368805103,1751368247549,-561.88688042,0.00020604,2]
[368805104,1751368247558,-25000.0,0.00020604,2]
[368805105,1751368247568,-15422.29999058,0.00020604,2]
[368805106,1751368247577,-460.0,0.00020605,2]
[368805107,1751368247586,-628.41,0.00020605,2]
[368805108,1751368247595,-506.63,0.00020605,2]
[368805109,1751368247604,-565.05,0.00020605,2]
[368805110,1751368247613,-492.86,0.00020605,2]
[368805111,1751368247622,-460.0,0.00020605,2]
[368805112,1751368247631,-460.0,0.00020605,2]
[368805113,1751368247641,-724.12,0.00020605,2]
[368805114,1751368247651,-531.59,0.00020605,2]
[368805115,1751368247660,-387.707,0.00020606,2]
[368805116,1751368247669,-872.81,0.00020606,2]
[368805117,1751368247678,-460.0,0.00020606,2]
[368805118,1751368247688,-460.0,0.00020606,2]
[368805119,1751368247697,-311.21,0.00020606,2]
[368805120,1751368247706,-591.39,0.00020606,2]
[368805121,1751368247716,-716.195754,0.00020659,2]
[368805122,1751368247729,-500.0,0.00020673,2]
[368805123,1751368247743,-500.70631354,0.00020673,2]
[368805124,1751368247752,-500.0,0.00020673,2]
[368805125,1751368247763,-742.6949969,0.00020714,2]
[368805126,1751368247773,-770.17471178,0.00020769,2]
[368805127,1751368247782,-990.71,0.0002078,2]
[368805128,1751368247792,-721.14,0.0002078,2]
[368805129,1751368247802,-798.67117612,0.00020824,2]
[368805130,1751368247812,-1676.8025974,0.00020831,4]
[368805131,1751368247820,-587.0,0.00020845,2]
[368805132,1751368247830,-460.0,0.00020879,2]
[368805133,1751368247839,-628.41,0.00020879,2]
[368805134,1751368247850,-506.63,0.00020879,2]
[368805135,1751368247859,-565.05,0.00020879,2]
[368805136,1751368247869,-492.86,0.00020879,2]
[368805137,1751368247878,-460.0,0.00020879,2]
[368805138,1751368247892,-460.0,0.00020879,2]
[368805139,1751368247901,-724.12,0.00020879,2]
[368805140,1751368247912,-828.22200964,0.00020879,2]
[368805141,1751368247922,-872.81,0.0002088,2]
[368805142,1751368247931,-460.0,0.0002088,2]
[368805143,1751368247940,-333.45,0.0002088,2]
[368805144,1751368247950,-591.39,0.0002088,2]
[368805145,1751368247959,-151.31566436,0.00020934,2]
[368805146,1751368247969,-230.47743035,0.00021,2]
[368805147,1751368247978,-1000.0,0.00021,21]
[368805148,1751368247988,-990.71,0.00021054,2]
[368805149,1751368247997,-721.14,0.00021054,2]
[368805150,1751368248007,-1676.8025974,0.00021072,4]
[368805151,1751368248016,-13486.57968142,0.00021152,2]
[368805152,1751368248038,-11513.42031858,0.00021152,2]
[368805153,1751368248047,-460.0,0.00021153,2]
[368805154,1751368248057,-628.41,0.00021153,2]
[368805155,1751368248067,-506.63,0.00021153,2]
[368805156,1751368248077,-565.05,0.00021153,2]
[368805157,1751368248086,-492.86,0.00021153,2]
[368805158,1751368248095,-460.0,0.00021153,2]
[368805159,1751368248104,-460.0,0.00021153,2]
[368805160,1751368248114,-724.12,0.00021153,2]
[368805161,1751368248123,-872.81,0.00021154,2]
[368805162,1751368248133,-460.0,0.00021154,2]
[368805164,1751368248142,-591.39,0.00021154,2]
[368805165,1751368248152,-386.31007141,0.00021267,2]
[368805167,1751368248161,-1676.8025974,0.00021314,5]
[368805169,1751368248171,-990.71,0.00021328,2]
[368805171,1751368248180,-721.14,0.00021328,2]
[368805173,1751368248189,-460.0,0.00021427,2]
[368805175,1751368248199,-628.41,0.00021427,2]
[368805177,1751368248208,-506.63,0.00021427,2]
[368805179,1751368248218,-565.05,0.00021427,2]
[368805181,1751368248228,-492.86,0.00021427,2]
[368805183,1751368248237,-460.0,0.00021427,2]
[368805185,1751368248246,-460.0,0.00021427,2]
[368805187,1751368248256,-724.12,0.00021427,2]
[368805189,1751368248265,-872.81,0.00021428,2]
[368805191,1751368248276,-460.0,0.00021428,2]
[368805193,1751368248285,-591.39,0.00021428,2]
[368805195,1751368248295,-1676.8025974,0.00021555,5]
[368805197,1751368248305,-990.71,0.00021602,2]
[368805199,1751368248315,-24828.77042604,0.000217,2]
[368805212,1751368248439,-460.0,0.00017591,2]
[368805215,1751368248450,-460.0,0.00017865,2]
[368805217,1751368248460,-721.14,0.00021602,2]
[368805219,1751368248470,-114.29417837,0.000217,2]
[368805271,1751368248979,-0.01055632,0.00017865,2]
[368805296,1751368249213,-460.0,0.00017591,2]
[368805298,1751368249223,-459.98944368,0.00017865,2]
[368805300,1751368249234,-460.0,0.00017865,2]
[368805302,1751368249244,-56.93539559,0.000217,2]
[368805304,1751368249253,-460.0,0.00021701,2]
[368805306,1751368249262,-628.41,0.00021701,2]
[368805308,1751368249271,-506.63,0.00021701,2]
[368805310,1751368249281,-565.05,0.00021701,2]
[368805312,1751368249291,-492.86,0.00021701,2]
[368805314,1751368249301,-212.63178838,0.00021701,2]
[368805316,1751368249310,-182.99,0.00021701,2]
[368805318,1751368249319,-724.12,0.00021701,2]
[368805320,1751368249328,-302.94,0.00021702,2]
[368805321,1751368249338,-591.39,0.00021702,2]
[368805324,1751368249348,-2151.0,0.00021729,2]
[368805326,1751368249357,-646.0,0.00021729,2]
[368805327,1751368249367,-1676.8025974,0.00021797,6]
[368805330,1751368249377,-150.0,0.000218,2]
[368805331,1751368249386,-1692.73656882,0.00021802,2]
[368805333,1751368249396,-990.71,0.00021876,2]
[368805336,1751368249406,-721.14,0.00021876,2]
[368805337,1751368249416,-215.0738,0.00021973,2]
[368805340,1751368249426,-460.0,0.00021975,2]
[368805341,1751368249436,-628.41,0.00021975,2]
[368805344,1751368249445,-506.63,0.00021975,2]
[368805345,1751368249455,-565.05,0.00021975,2]
[368805347,1751368249465,-492.86,0.00021975,2]
[368805349,1751368249474,-724.12,0.00021975,2]
[368805351,1751368249484,-542.19882725,0.00021976,2]
[368805355,1751368249512,-460.0,0.00017591,2]
[368805357,1751368249522,-460.0,0.00017591,2]
[368805359,1751368249532,-49.19117275,0.00021976,2]
[368805361,1751368249542,-500.0,0.00022,8]
[368805364,1751368249554,-126.83133871,0.00022,7]
[368805374,1751368249637,-460.0,0.00017492,2]
[368805376,1751368249647,-460.0,0.00017591,2]
[368805378,1751368249658,-275.98,0.00017766,2]
[368805380,1751368249667,-460.0,0.00017865,2]
[368805382,1751368249676,-460.0,0.00018139,2]
[368805384,1751368249686,-460.0,0.00018139,2]
[368805386,1751368249696,-460.0,0.00018413,2]
[368805388,1751368249705,-460.0,0.00018687,2]
[368805390,1751368249715,-460.0,0.00018961,2]
[368805392,1751368249728,-460.0,0.00019235,2]
[368805394,1751368249739,-460.0,0.00019509,2]
[368805396,1751368249748,-1000.0,0.0002,20]
[368805398,1751368249757,-163.60777246,0.00022,7]
[368809258,1751368291774,1067.0,0.00025137,60]
[368811382,1751368370865,-241.19631906,0.00017316,2]
[368811383,1751368375259,-96.80368094,0.00017316,2]
[368811384,1751368375286,-89.97569073,0.00017316,2]
[368811385,1751368380616,-316.19229555,0.00017316,2]
[368811386,1751368444076,5000.0,0.0001711,2]
[368811387,1751368476527,-300.0,0.00017315,2]
[368811389,1751368478814,-374.74750462,0.00017315,2]
[368811390,1751368500867,475.55238,0.00013699,2]
[368811391,1751368501617,-178.53683612,0.00017315,2]
[368811392,1751368503887,-176.27815085,0.00017315,2]
[368811393,1751368505647,-156.16817681,0.00017315,2]
[368811394,1751368510102,-256.76557787,0.00017315,2]
[368811395,1751368512995,-160.06051857,0.00017315,2]
[368811396,1751368529436,24900.0,0.00016516,2]
[368811397,1751368551456,-216.62346755,0.00017315,2]
[368811398,1751368576301,-243.37653245,0.000173,2]
[368811399,1751368578442,-158.86805727,0.000173,2]
[368811400,1751368582639,-342.81067904,0.000173,2]
[368811402,1751368653246,5000.0,0.0001711,2]
[368811403,1751368668549,5000.0,0.0001711,2]
[368811404,1751368688682,5000.0,0.0001711,2]
[368811405,1751368703975,5000.0,0.0001711,2]
[368811406,1751368709821,165.055098,0.00016489,2]
[368811407,1751368710030,165.055098,0.00016571,2]
[368811408,1751368719770,5000.0,0.0001711,2]
[368811409,1751368735431,5000.0,0.0001711,2]
[368811410,1751368748776,-215.7231602,0.00017199,2]
[368811411,1751368754137,5000.0,0.0001711,2]
[368811412,1751368770028,3944.93721359,0.0001711,2]
[368811413,1751368837730,-192.36429118,0.00017197,2]
[368811414,1751368839934,-218.86526479,0.00017197,2]
[368811415,1751368841622,-88.77044403,0.00017197,2]
[368811416,1751368841645,-143.11882622,0.00017197,2]
[368811417,1751368846698,-363.98273888,0.00017196,2]
[368811418,1751368864167,-300.0,0.00017195,2]
[368811419,1751368865083,-17876.16735078,0.00017196,2]
[368811420,1751368865099,-20000.0,0.00017196,2]
[368811421,1751368865114,-19413.26580344,0.00017196,2]
[368811422,1751368865124,-356.88117378,0.00017197,2]
[368811423,1751368865133,-229.85302278,0.00017197,2]
[368811424,1751368865167,-270.14697722,0.00017197,2]
[368811425,1751368865199,-500.0,0.00017197,2]
[368811426,1751368865230,-500.0,0.00017197,2]
[368811427,1751368865264,-645.67755987,0.00017197,2]
[368811428,1751368865297,-500.0,0.00017197,2]
[368811429,1751368865327,-500.0,0.00017197,2]
[368811430,1751368865358,-500.0,0.00017197,2]
[368811431,1751368865386,-423.03877024,0.00017197,2]
[368811432,1751368865414,-500.0,0.00017197,2]
[368811433,1751368865444,-500.0,0.00017197,2]
[368811434,1751368865472,-514.13837676,0.00017197,2]
[368811435,1751368865501,-500.0,0.00017197,2]
[368811436,1751368865531,-155.0,0.00017197,2]
[368811437,1751368865561,-500.0,0.00017197,2]
[368811438,1751368865606,-500.0,0.00017197,2]
[368811439,1751368865638,-500.0,0.00017197,2]
[368811440,1751368865671,-500.0,0.00017197,2]
[368811441,1751368865701,-500.0,0.00017197,2]
[368811442,1751368865845,-500.0,0.00017197,2]
[368811443,1751368865880,-500.0,0.00017197,2]
[368811444,1751368865911,-483.99663182,0.00017197,2]
[368811445,1751368865948,-16.00336818,0.00017197,2]
[368811446,1751368865980,-500.0,0.00017197,2]
[368811447,1751368866010,-500.0,0.00017197,2]
[368811448,1751368866045,-500.0,0.00017197,2]
[368811449,1751368866077,-500.0,0.00017197,2]
[368811450,1751368866111,-500.0,0.00017197,2]
[368811451,1751368866144,-500.0,0.00017197,2]
[368811452,1751368866176,-243.34428038,0.00017197,2]
[368811453,1751368866214,-500.0,0.00017197,2]
[368811454,1751368866246,-500.0,0.00017197,2]
[368811455,1751368866276,-500.0,0.00017197,2]
[368811456,1751368866308,-500.0,0.00017197,2]
[368811457,1751368866339,-500.0,0.00017197,2]
[368811458,1751368866370,-500.0,0.00017197,2]
[368811459,1751368866401,-500.0,0.00017197,2]
[368811460,1751368866434,-180.92159011,0.00017197,2]
[368811461,1751368866468,-500.0,0.00017197,2]
[368811462,1751368866498,-470.72075869,0.00017197,2]
[368811463,1751368866529,-500.0,0.00017197,2]
[368811464,1751368866558,-500.0,0.00017197,2]
[368811465,1751368866589,-220.42795755,0.00017197,2]
[368811466,1751368866623,-500.0,0.00017197,2]
[368811467,1751368866655,-237.16409018,0.00017197,2]
[368811468,1751368866694,-262.83590982,0.00017197,2]
[368811469,1751368866725,-500.0,0.00017197,2]
[368811470,1751368866757,-500.0,0.00017197,2]
[368811471,1751368866789,-236.48682821,0.00017197,2]
[368811472,1751368866821,-500.0,0.00017197,2]
[368811473,1751368866852,-500.0,0.00017197,2]
[368811474,1751368866886,-500.0,0.00017197,2]
[368811475,1751368866916,-500.0,0.00017197,2]
[368811476,1751368866948,-500.0,0.00017197,2]
[368811477,1751368866981,-500.0,0.00017197,2]
[368811478,1751368867013,-500.0,0.00017197,2]
[368811479,1751368867053,-353.43573223,0.00017197,2]
[368811480,1751368867086,-500.0,0.00017197,2]
[368811481,1751368867121,-500.0,0.00017197,2]
[368811482,1751368867154,-500.0,0.00017197,2]
[368811483,1751368867186,-500.0,0.00017197,2]
[368811484,1751368867219,-500.0,0.00017197,2]
[368811485,1751368867249,-500.0,0.00017197,2]
[368811486,1751368867282,-196.4806861,0.00017199,2]
[368811487,1751368867316,-300.0,0.00017219,2]
[368811488,1751368867347,-300.0,0.00017219,2]
[368811489,1751368867375,-174.0,0.00017219,2]
[368811490,1751368867405,-428.0,0.00017219,2]
[368811491,1751368869077,-364.36101938,0.00017195,2]
[368811492,1751368869097,-497.52168728,0.00017195,2]
[368811493,1751368869123,-338.11729334,0.00017195,2]
[368811494,1751368869136,-19661.88270666,0.0001722,2]
[368811495,1751368869153,-20000.0,0.0001722,2]
[368811496,1751368869171,-9593.06202458,0.0001722,2]
[368811497,1751368869183,-282.88783647,0.00017298,2]
[368811498,1751368869196,-460.0,0.00017298,2]
[368811499,1751368869207,-460.0,0.00017298,2]
[368811500,1751368869218,-460.0,0.00017298,2]
[368811501,1751368869439,-460.0,0.00017298,2]
[368811502,1751368869451,-460.0,0.00017298,2]
[368811503,1751368869466,-449.96623909,0.00017298,2]
[368811504,1751368869477,-460.0,0.00017298,2]
[368811505,1751368869490,-460.0,0.00017298,2]
[368811506,1751368869501,-460.0,0.00017298,2]
[368811507,1751368869513,-460.0,0.00017298,2]
[368811508,1751368869525,-460.0,0.00017298,2]
[368811509,1751368869536,-460.0,0.00017298,2]
[368811510,1751368869547,-728.93,0.00017298,2]
[368811511,1751368869559,-460.0,0.00017298,2]
[368811512,1751368869572,-460.0,0.00017298,2]
[368811513,1751368869585,-385.54564694,0.00017298,2]
[368811514,1751368869597,-1170.78,0.00017298,2]
[368811515,1751368869608,-460.0,0.00017298,2]
[368811516,1751368869619,-460.0,0.00017298,2]
[368811517,1751368869630,-460.0,0.00017298,2]
[368811518,1751368869642,-28.82825292,0.00017298,2]
[368811519,1751368869669,-431.17174708,0.00017298,2]
[368811520,1751368869681,-19568.82825292,0.00017299,2]
[368811521,1751368869926,-460.0,0.00017299,2]
[368811522,1751368869965,-378.06780986,0.00017299,2]
[368811523,1751368870002,-460.0,0.00017299,2]
[368811524,1751368870048,-774.55,0.00017299,2]
[368811525,1751368870086,-460.0,0.00017299,2]
[368811526,1751368870128,-460.0,0.00017299,2]
[368811527,1751368870165,-460.0,0.00017299,2]
[368811528,1751368870201,-460.0,0.00017299,2]
[368811529,1751368870237,-460.0,0.00017299,2]
[368811530,1751368870271,-460.0,0.00017299,2]
[368811531,1751368870305,-460.0,0.00017299,2]
[368811532,1751368870342,-460.0,0.00017299,2]
[368811533,1751368870379,-460.0,0.00017299,2]
[368811534,1751368870414,-677.32,0.00017299,2]
[368811535,1751368870450,-460.0,0.00017299,2]
[368811536,1751368870485,-1032.37,0.00017299,2]
[368811537,1751368870519,-460.0,0.00017299,2]
[368811538,1751368870554,-460.0,0.00017299,2]
[368811539,1751368870591,-496.06,0.00017299,2]
[368811540,1751368871036,-460.0,0.00017299,2]
[368811541,1751368871046,-460.0,0.00017299,2]
[368811542,1751368871055,-460.0,0.00017299,2]
[368811543,1751368871064,-460.0,0.00017299,2]
[368811544,1751368871075,-460.0,0.00017299,2]
[368811545,1751368871085,-460.0,0.00017299,2]
[368811546,1751368871094,-460.0,0.00017299,2]
[368811547,1751368871103,-460.0,0.00017299,2]
[368811548,1751368871113,-460.0,0.00017299,2]
[368811549,1751368871123,-460.0,0.00017299,2]
[368811550,1751368871132,-460.0,0.00017299,2]
[368811551,1751368871142,-460.0,0.00017299,2]
[368811552,1751368871151,-460.0,0.00017299,2]
[368811553,1751368871160,-460.0,0.00017299,2]
[368811554,1751368871170,-460.0,0.00017299,2]
[368811555,1751368871179,-460.0,0.00017299,2]
[368811556,1751368871188,-460.0,0.00017299,2]
[368811557,1751368871197,-460.0,0.00017299,2]
[368811558,1751368871206,-1921.63219014,0.00017299,2]
[368811559,1751368871220,-336.73780986,0.00017299,2]
[368811560,1751368940469,-460.0,0.00017196,2]
[368811561,1751368940498,-460.0,0.00017196,2]
[368811562,1751368940528,-460.0,0.00017196,2]
[368811563,1751368940557,-460.0,0.00017196,2]
[368811564,1751368940585,-460.0,0.00017196,2]
[368811565,1751368940614,-460.0,0.00017196,2]
[368811566,1751368940644,-300.0,0.00017297,2]
[368811567,1751368940673,-460.0,0.00017298,2]
[368811568,1751368940702,-460.0,0.00017298,2]
[368811569,1751368940732,-460.0,0.00017298,2]
[368811570,1751368940769,-460.0,0.00017298,2]
[368811571,1751368940807,-524.47,0.00017298,2]
[368811572,1751368940839,-460.0,0.00017298,2]
[368811573,1751368940873,-1038.47,0.00017298,2]
[368811574,1751368940904,-460.0,0.00017298,2]
[368811575,1751368940935,-460.0,0.00017298,2]
[368811576,1751368940965,-460.0,0.00017298,2]
[368811577,1751368940995,-460.0,0.00017298,2]
[368811578,1751368941025,-460.0,0.00017298,2]
[368811579,1751368941056,-460.0,0.00017298,2]
[368811580,1751368941087,-174.12,0.00017298,2]
[368811581,1751368941202,-285.88,0.00017298,2]
[368811582,1751368941231,-460.0,0.00017298,2]
[368811583,1751368941260,-460.0,0.00017298,2]
[368811584,1751368941290,-821.22,0.00017298,2]
[368811585,1751368941318,-460.0,0.00017298,2]
[368811586,1751368941348,-1263.26,0.00017298,2]
[368811587,1751368941378,-460.0,0.00017298,2]
[368811588,1751368941410,-460.0,0.00017298,2]
[368811589,1751368941439,-460.0,0.00017298,2]
[368811590,1751368941468,-460.0,0.00017299,2]
[368811591,1751368941496,-460.0,0.00017299,2]
[368811592,1751368941526,-487.03,0.00017299,2]
[368811593,1751368941555,-460.0,0.00017299,2]
[368811594,1751368942208,460.0,0.00017298,2]
[368811595,1751368944623,460.0,0.00017196,2]
[368811596,1751368946038,460.0,0.00017298,2]
[368811597,1751368946323,460.68887809,0.00017196,2]
[368811598,1751368946407,460.0,0.00017299,2]
[368811599,1751368947342,460.0,0.00017298,2]
[368811600,1751368948023,460.0,0.00017298,2]
[368811601,1751368950276,460.0,0.00017196,2]
[368811602,1751368952010,607.86,0.00017298,2]
[368811603,1751368952111,460.0,0.00017196,2]
[368811604,1751368952415,460.0,0.00017298,2]
[368811605,1751368953805,460.0,0.00017299,2]
[368811606,1751368957518,336.67112191,0.00017196,2]
[368811607,1751368957545,123.32887809,0.00017196,2]
[368811608,1751368960497,460.0,0.00017196,2]
[368811609,1751368961141,581.4860063,0.00017298,2]
[368811610,1751368963174,460.0,0.00017298,2]
[368811611,1751368963765,-151.1189796,0.0001747,2]
[368811612,1751368965371,831.96,0.00017298,2]
[368811613,1751368965859,460.0,0.00017196,2]
[368811614,1751368965980,460.0,0.00017298,2]
[368811615,1751368966031,-167.07347861,0.0001747,2]
[368811616,1751368967471,460.0,0.00017298,2]
[368811617,1751368970815,460.0,0.00017298,2]
[368811618,1751368973692,460.0,0.00017298,2]
[368811619,1751368975936,460.0,0.00017299,2]
[368811620,1751368978171,460.0,0.00017298,2]
[368811621,1751368978642,460.0,0.00017298,2]
[368811622,1751368981889,460.0,0.00017299,2]
[368811623,1751368982125,460.0,0.00017298,2]
[368811624,1751368983127,460.0,0.00017298,2]
[368811625,1751368984177,460.0,0.00017298,2]
[368811626,1751368984417,460.0,0.00017196,2]
[368811627,1751368985856,460.0,0.00017298,2]
[368811628,1751368986095,460.0,0.00017298,2]
[368811629,1751368986992,460.0,0.00017298,2]
[368811630,1751368989562,460.0,0.00017298,2]
[368811631,1751368993782,460.0,0.00017298,2]
[368811632,1751368997425,460.0,0.00017298,2]
[368811633,1751368998986,460.0,0.00017299,2]
[368811634,1751368999022,460.0,0.00017298,2]
[368811635,1751369003293,460.0,0.00017298,2]
[368811636,1751369008987,460.0,0.00017298,2]
[368811637,1751369009149,460.0,0.00017299,2]
[368811638,1751369009550,460.0,0.00017298,2]
[368811639,1751369010702,584.48751192,0.00017298,2]
[368811640,1751369012560,460.0,0.00017298,2]
[368811641,1751369013317,460.0,0.00017298,2]
[368811642,1751369014303,460.0,0.00017298,2]
[368811643,1751369017180,460.0,0.00017298,2]
[368811644,1751369020766,423.07592919,0.00017298,2]
[368811645,1751369021223,460.0,0.00017299,2]
[368811646,1751369026809,460.0,0.00017298,2]
[368811647,1751369027103,460.0,0.00017298,2]
[368811648,1751369030228,460.0,0.00017299,2]
[368811649,1751369030623,500.0,0.00017298,2]
[368811650,1751369030995,449.72399421,0.00017298,2]
[368811651,1751369033443,405.93768029,0.00017298,2]
[368811652,1751369033466,54.06231971,0.00017298,2]
[368811653,1751369035405,460.0,0.00017299,2]
[368811654,1751369039849,557.32421916,0.00017298,2]
[368811655,1751369042858,460.0,0.00017298,2]
[368811656,1751369043763,460.0,0.00017298,2]
[368811657,1751369046393,460.0,0.00017299,2]
[368811658,1751369049102,460.0,0.00017298,2]
[368811659,1751369049564,460.0,0.00017298,2]
[368811660,1751369051604,495.0,0.00017298,2]
[368811661,1751369051786,460.0,0.00017298,2]
[368811662,1751369054376,460.0,0.00017298,2]
[368811663,1751369058058,560.532534,0.0001649,2]
[368811664,1751369059103,10000.0,0.0001649,2]
[368811665,1751369062423,460.0,0.00017298,2]
[368811666,1751369062884,460.0,0.00017298,2]
[368811667,1751369062925,278.78854081,0.00016965,2]
[368811668,1751369063792,460.0,0.00017298,2]
[368811669,1751369070613,2645.71,0.00017298,2]
[368811670,1751369071236,348.58238632,0.00017298,2]
[368811671,1751369071260,111.41761368,0.00017298,2]
[368811672,1751369071605,460.0,0.00017298,2]
[368811673,1751369073720,460.0,0.00017298,2]
[368811674,1751369076142,460.0,0.00017298,2]
[368811675,1751369076276,460.0,0.00017298,2]
[368811676,1751369078494,460.0,0.00017298,2]
[368811677,1751369078905,460.0,0.00017298,2]
[368811678,1751369083601,460.0,0.00017298,2]
[368811679,1751369083996,460.0,0.00017299,2]
[368811680,1751369086162,460.0,0.00017298,2]
[368811681,1751369087994,460.0,0.00017298,2]
[368811682,1751369090024,460.0,0.00017298,2]
[368811683,1751369094117,460.0,0.00017299,2]
[368811684,1751369100845,460.0,0.00017299,2]
[368811685,1751369101380,460.0,0.00017298,2]
[368811686,1751369106881,521.68,0.00017298,2]
[368811687,1751369111898,460.0,0.00017298,2]
[368811688,1751369112348,460.0,0.00017298,2]
[368811689,1751369115527,460.0,0.00017298,2]
[368811690,1751369117498,460.0,0.00017298,2]
[368811691,1751369119604,460.0,0.00017298,2]
[368811692,1751369121650,309.51892845,0.00017298,2]
[368811693,1751369121673,150.48107155,0.00017298,2]
[368811694,1751369123097,460.0,0.00017298,2]
[368811695,1751369125317,460.0,0.00017298,2]
[368811697,1751369127192,460.0,0.00017298,2]
[368811698,1751369128959,460.0,0.00017298,2]
[368811699,1751369129947,467.87,0.00017298,2]
[368811701,1751369137194,460.0,0.00017298,2]
[368811702,1751369142403,460.0,0.00017298,2]
[368811703,1751369144312,514.4,0.00017299,2]
[368811704,1751369144345,900.0,0.00016917,2]
[368811705,1751369147963,460.0,0.00017298,2]
[368811706,1751369149507,460.0,0.00017298,2]
[368811707,1751369150860,152.70048686,0.00017298,2]
[368811708,1751369150885,307.29951314,0.00017298,2]
[368811709,1751369155482,460.0,0.00017298,2]
[368811710,1751369156090,-141.80754179,0.0001747,2]
[368811711,1751369156111,-277.01954766,0.0001747,2]
[368811712,1751369156137,-182.98045234,0.0001747,2]
[368811713,1751369156162,-460.0,0.0001747,2]
[368811714,1751369156182,-208.4592784,0.0001747,2]
[368811716,1751369158673,460.0,0.00017298,2]
[368811717,1751369162519,460.0,0.00017298,2]
[368811718,1751369163892,460.0,0.00017298,2]
[368811719,1751369164052,460.0,0.00017298,2]
[368811720,1751369164179,460.0,0.00017298,2]
[368811722,1751369166363,460.0,0.00017299,2]
[368811723,1751369169287,1386.85180163,0.00017298,2]
[368811724,1751369169312,21.46819837,0.00017298,2]
[368811725,1751369173877,460.0,0.00017298,2]
[368811726,1751369176224,460.0,0.00017299,2]
[368811727,1751369181782,460.0,0.00017298,2]
[368811728,1751369184810,190.13488774,0.00017298,2]
[368811729,1751369187339,460.0,0.00017298,2]
[368811730,1751369188081,215.7231602,0.00016621,2]
[368811731,1751369189361,460.0,0.00017298,2]
[368811732,1751369189391,460.0,0.00017298,2]
[368811733,1751369191352,175.73812141,0.00017298,2]
[368811734,1751369191377,284.26187859,0.00017298,2]
[368811735,1751369194043,460.0,0.00017298,2]